bitfinex-derivatives/quotes_SOLF0:USTF0_20240924
["timestamp","ask_amount","ask_price","bid_price","bid_amount"]
[1727203521715,3.3901,147.51,147.47,12.7708]
[1727203526114,7.4811426,147.53,147.46,9.38]
[1727203526115,9.38,147.5,147.46,9.38]
[1727203526414,9.38,147.49,147.45,9.38]
[1727203526616,9.38,147.5,147.46,12.7712]
[1727203527213,3.3906,147.49,147.46,12.7712]
[1727203527414,9.38,147.5,147.45,12.7714]
[1727203528822,3.3908,147.48,147.45,12.7714]
[1727203529519,3.3906,147.49,147.45,12.7714]
[1727203529719,9.38,147.5,147.46,3.3911]
[1727203530013,3.3901,147.51,147.46,9.38]
[1727203530215,3.3901,147.51,147.47,3.3908]
[1727203531808,9.38,147.51,147.46,3.3912]
[1727203532319,3.3907,147.49,147.45,12.7713]
[1727203532910,3.391,147.47,147.42,5.92178813]
[1727203533110,12.771,147.47,147.43,9.38]
[1727203534811,12.771,147.47,147.44,3.3916]
[1727203535028,9.38,147.47,147.44,3.3916]
[1727203535220,9.38,147.5,147.45,9.38]
[1727203535722,12.7705,147.5,147.46,3.3911]
[1727203539324,12.7701,147.51,147.46,9.38]
[1727203539622,16.8611426,147.53,147.48,9.38]
[1727203540126,3.39,147.52,147.49,3.3904]
[1727203540526,12.77,147.52,147.49,3.3904]
[1727203540727,3.3901,147.51,147.49,3.3904]
[1727203548430,3.3903,147.5,147.46,9.38]
[1727203548621,9.38,147.5,147.46,9.38]
[1727203549022,3.3906,147.49,147.46,12.7711]
[1727203549836,3.3906,147.49,147.46,3.3911]
[1727203550332,12.7704,147.5,147.46,3.3911]
[1727203550739,12.7704,147.5,147.47,3.391]
[1727203551125,12.7701,147.51,147.47,9.38]
[1727203551335,9.38,147.52,147.48,9.38]
[1727203551632,9.38,147.54,147.5,9.38]
[1727203551832,2.7683,147.6,147.49,12.7704]
[1727203551833,3.39,147.52,147.49,12.7704]
[1727203552835,3.39,147.52,147.5,3.3903]
[1727203553226,3.3901,147.51,147.49,9.38]
[1727203553432,9.38,147.51,147.46,9.38]
[1727203553844,3.3904,147.5,147.46,9.38]
[1727203554031,3.3904,147.5,147.47,3.3909]
[1727203554233,9.38,147.51,147.47,9.38]
[1727203554432,12.7702,147.51,147.42,6.7842]
[1727203554633,12.7702,147.51,147.46,9.38]
[1727203554833,3.3903,147.5,147.47,3.3909]
[1727203555040,9.38,147.49,147.43,2.7461]
[1727203555239,9.38,147.48,147.43,12.1261]
[1727203555645,3.3911,147.47,147.43,15.5179]
[1727203556334,3.3911,147.47,147.43,6.1379]
[1727203556539,3.3913,147.46,147.42,3.392]
[1727203557043,3.3913,147.46,147.4,14.65]
[1727203557634,3.3913,147.46,147.42,3.392]
[1727203557937,14.65,147.45,147.39,2.7343]
[1727203558137,18.020529,147.45,147.39,2.7343]
[1727203559847,3.3918,147.44,147.4,3.3926]
[1727203560246,14.65,147.47,147.39,2.7343]
[1727203560452,3.3913,147.46,147.42,3.3919]
[1727203560949,14.65,147.47,147.42,3.3919]
[1727203561852,3.3915,147.45,147.42,3.3919]
[1727203562053,14.65,147.47,147.39,2.7343]
[1727203562348,14.65,147.44,147.37,1.4081]
[1727203562551,17.96715328,147.44,147.37,1.4081]
[1727203562739,17.96715328,147.44,147.38,3.3929]
[1727203562938,14.65,147.44,147.37,1.4081]
[1727203563337,3.3926,147.41,147.34,15.9585]
[1727203563543,3.33547635,147.45,147.32,7.31830384]
[1727203563759,14.65,147.39,147.34,3.3938]
[1727203563945,3.3937,147.36,147.31,4.86826044]
[1727203564145,14.65,147.37,147.31,4.86826044]
[1727203564546,18.0434,147.37,147.32,3.3944]
[1727203565652,14.65,147.34,147.3,2.8452]
[1727203565953,14.65,147.34,147.27,14.65]
[1727203566154,14.65,147.34,147.27,17.3741]
[1727203566457,14.65,147.34,147.3,3.3947]
[1727203567852,14.65,147.34,147.31,3.3946]
[1727203568052,14.65,147.36,147.27,17.3741]
[1727203568556,18.0435,147.36,147.27,17.3741]
[1727203568854,14.65,147.34,147.27,2.7241]
[1727203569241,18.044,147.34,147.29,3.3949]
[1727203569450,18.044,147.34,147.27,2.7241]
[1727203569644,14.65,147.34,147.27,2.7241]
[1727203569844,3.3943,147.33,147.29,3.3951]
[1727203572054,18.0445,147.32,147.28,3.3953]
[1727203572455,14.65,147.32,147.27,2.7241]
[1727203572953,14.65,147.32,147.29,3.3951]
[1727203573153,4.064,147.39,147.27,2.7241]
[1727203573154,14.65,147.34,147.27,2.7241]
[1727203574351,18.0441,147.34,147.29,3.3949]
[1727203574552,14.65,147.34,147.29,3.3949]
[1727203574860,18.0444,147.32,147.28,3.3952]
[1727203575161,14.65,147.34,147.27,2.7241]
[1727203575548,3.3942,147.33,147.29,3.3951]
[1727203575753,14.65,147.34,147.29,3.3951]
[1727203575962,14.65,147.34,147.28,3.3952]
[1727203576157,3.46407905,147.36,147.28,3.3952]
[1727203576158,14.65,147.32,147.28,3.3952]
[1727203576362,14.65,147.32,147.23,14.65]
[1727203576664,3.395,147.3,147.26,3.3956]
[1727203576865,14.65,147.32,147.23,14.65]
[1727203577162,3.3952,147.29,147.25,3.3959]
[1727203577467,3.3952,147.29,147.22,4.1054]
[1727203577658,14.65,147.32,147.23,14.65]
[1727203578061,3.3948,147.31,147.27,3.3955]
[1727203578459,3.3949,147.3,147.27,3.3955]
[1727203578664,3.3949,147.3,147.26,3.3957]
[1727203581566,3.3949,147.3,147.27,3.3956]
[1727203583563,14.65,147.32,147.28,3.3952]
[1727203584261,3.3947,147.31,147.28,3.3952]
[1727203584462,14.65,147.32,147.29,3.3951]
[1727203584661,14.65,147.32,147.25,14.65]
[1727203584861,14.65,147.34,147.25,14.65]
[1727203585066,14.65,147.36,147.27,14.65]
[1727203585275,3.3941,147.34,147.27,14.65]
[1727203585461,17.98921447,147.36,147.27,14.65]
[1727203585462,17.98921447,147.36,147.3,3.3948]
[1727203586273,9.4,147.33,147.3,3.3948]
[1727203588370,3.3942,147.34,147.3,3.3948]
[1727203588978,14.68,147.38,147.29,14.68]
[1727203589167,18.03710014,147.38,147.29,14.68]
[1727203589362,18.03710014,147.38,147.3,4.154]
[1727203589974,18.03710014,147.38,147.33,3.3941]
[1727203589975,3.3934,147.37,147.33,3.3941]
[1727203591281,3.3936,147.36,147.33,3.3941]
[1727203592668,14.68,147.36,147.3,2.8377]
[1727203592872,14.68,147.36,147.27,14.68]
[1727203593075,14.68,147.36,147.3,3.3948]
[1727203593277,3.3941,147.34,147.3,3.3948]
[1727203594082,14.68,147.34,147.29,3.395]
[1727203594578,3.3943,147.33,147.29,3.395]
[1727203596177,18.0741,147.34,147.3,3.3949]
[1727203596372,14.68,147.36,147.28,14.68]
[1727203597283,18.0737,147.36,147.32,3.3943]
[1727203600483,18.0737,147.36,147.33,3.3942]
[1727203601486,3.3933,147.37,147.33,3.3942]
[1727203601998,3.3933,147.37,147.34,3.394]
[1727203603185,14.68,147.38,147.34,3.394]
[1727203603484,14.68,147.38,147.29,14.68]
[1727203603485,14.68,147.37,147.33,3.3942]
[1727203603691,14.68,147.37,147.28,14.68]
[1727203604785,3.3941,147.34,147.31,3.3945]
[1727203605694,3.3938,147.35,147.31,3.3945]
[1727203608291,9.39,147.34,147.31,3.3945]
[1727203608693,9.39,147.33,147.26,4.0039]
[1727203608888,9.39,147.32,147.28,9.39]
[1727203609083,9.39,147.3,147.26,4.0039]
[1727203609291,9.39,147.3,147.28,3.3952]
[1727203610188,9.39,147.31,147.28,3.3952]
[1727203610390,3.3945,147.32,147.28,3.3952]
[1727203611299,3.3947,147.31,147.28,3.3952]
[1727203612296,3.3947,147.31,147.27,3.3954]
[1727203612498,3.3949,147.31,147.26,1.3093]
[1727203612690,18.0549,147.31,147.26,1.3093]
[1727203612890,18.0549,147.31,147.27,3.3956]
[1727203613493,3.3949,147.3,147.26,3.3957]
[1727203613997,14.66,147.29,147.23,3.3963]
[1727203614599,3.3957,147.27,147.23,3.3963]
[1727203614793,14.66,147.29,147.21,81.03998508]
[1727203615190,3.3954,147.28,147.21,81.03998508]
[1727203615491,14.66,147.29,147.25,3.396]
[1727203616100,18.0553,147.29,147.25,3.396]
[1727203616501,14.66,147.29,147.24,3.3961]
[1727203616702,14.66,147.29,147.21,81.03998508]
[1727203617003,14.66,147.27,147.21,81.03998508]
[1727203617302,18.0557,147.27,147.23,3.3963]
[1727203619596,14.66,147.27,147.22,3.3966]
[1727203619796,14.66,147.27,147.17,7.52781668]
[1727203620090,14.66,147.27,147.24,3.3958]
[1727203620291,14.66,147.29,147.2,14.66]
[1727203620496,14.66,147.27,147.2,14.66]
[1727203620994,2.7907,147.3,147.22,14.66]
[1727203621198,14.66,147.31,147.28,3.3949]
[1727203621904,14.66,147.33,147.25,14.66]
[1727203623695,14.66,147.33,147.25,18.0895612]
[1727203623999,1.3662,147.34,147.27,14.66]
[1727203624197,4.7599,147.34,147.27,14.66]
[1727203624389,1.3662,147.34,147.27,14.66]
[1727203624595,4.8012,147.37,147.33,3.3939]
[1727203624800,3.3929,147.37,147.33,3.3939]
[1727203625704,3.3928,147.38,147.34,3.3936]
[1727203625905,14.66,147.4,147.34,3.3936]
[1727203626095,3.3929,147.38,147.35,3.3934]
[1727203626400,14.66,147.4,147.35,3.3934]
[1727203626608,18.907,147.42,147.33,14.66]
[1727203626792,14.66,147.38,147.29,20.5797418]
[1727203626994,4.247,147.42,147.25,3.4295612]
[1727203626995,14.66,147.36,147.27,14.66]
[1727203627200,14.66,147.34,147.25,25.56586654]
[1727203627403,14.66,147.34,147.26,12.7472439]
[1727203627597,14.66,147.34,147.26,5.92683521]
[1727203627798,18.0538,147.34,147.29,3.3948]
[1727203628110,14.66,147.32,147.26,5.92737349]
[1727203628406,3.3944,147.31,147.27,3.3951]
[1727203628901,18.0541,147.32,147.28,3.395]
[1727203632904,3.3944,147.31,147.28,3.395]
[1727203635406,18.0546,147.3,147.24,1.428]
[1727203635605,18.0546,147.3,147.25,17.67986353]
[1727203635904,18.0546,147.3,147.26,9.339711]
[1727203636109,18.0546,147.3,147.26,3.3954]
[1727203636701,3.3949,147.29,147.25,3.3957]
[1727203636903,14.66,147.3,147.23,2.7793]
[1727203637109,14.66,147.26,147.24,5.94500358]
[1727203637415,18.0557,147.26,147.2,18.77937839]
[1727203637606,14.66,147.28,147.2,7.83342516]
[1727203637809,14.66,147.3,147.25,3.3955]
[1727203638301,3.395,147.29,147.25,3.3955]
[1727203640717,3.395,147.28,147.25,3.3955]
[1727203641805,3.395,147.28,147.22,6.83946066]
[1727203641806,14.66,147.3,147.22,4.89455866]
[1727203642017,7.49536635,147.33,147.19,1.4084]
[1727203642314,18.0555,147.26,147.2,15.83829801]
[1727203642520,18.0555,147.26,147.21,4.89475936]
[1727203642814,18.0555,147.26,147.22,3.3963]
[1727203643413,18.0555,147.26,147.22,9.34015037]
[1727203643613,18.0555,147.26,147.22,3.3963]
[1727203644004,14.66,147.26,147.23,3.3961]
[1727203644208,3.3953,147.27,147.2,7.83161498]
[1727203644517,3.3952,147.27,147.21,5.94192613]
[1727203644717,3.3952,147.27,147.19,16.0684]
[1727203645115,3.3952,147.27,147.2,12.77913324]
[1727203645420,3.3952,147.27,147.23,3.3961]
[1727203645809,14.66,147.27,147.22,3.3962]
[1727203646111,14.66,147.25,147.19,1.4084]
[1727203646311,14.66,147.25,147.2,5.94143415]
[1727203646516,3.3962,147.23,147.17,3.41361668]
[1727203646818,14.66,147.23,147.18,12.77793469]
[1727203647011,3.396,147.24,147.2,3.3967]
[1727203647506,14.66,147.25,147.2,3.3967]
[1727203648016,14.66,147.25,147.19,3.397]
[1727203648313,14.66,147.23,147.19,3.397]
[1727203648720,3.3965,147.22,147.19,3.397]
[1727203649311,3.3965,147.22,147.18,3.3972]
[1727203649719,14.66,147.25,147.16,5.93906823]
[1727203649921,18.8163,147.27,147.17,5.93659331]
[1727203650214,22.2118,147.27,147.18,20.59530662]
[1727203650416,2.7384,147.27,147.2,14.66]
[1727203650613,14.66,147.29,147.2,14.66]
[1727203650812,14.66,147.3,147.22,14.66]
[1727203651023,14.66,147.3,147.22,18.1065936]
[1727203651721,14.66,147.3,147.26,3.3953]
[1727203652115,18.0546,147.3,147.26,3.3953]
[1727203652416,18.9434,147.32,147.24,14.66]
[1727203652813,3.3944,147.31,147.24,14.66]
[1727203653020,3.3944,147.31,147.23,4.1164]
[1727203653021,14.66,147.34,147.26,14.66]
[1727203653223,18.05605968,147.34,147.26,14.66]
[1727203653409,3.394,147.33,147.26,14.66]
[1727203653607,18.05605968,147.34,147.26,14.66]
[1727203653925,18.05605968,147.34,147.23,4.1164]
[1727203653926,3.3944,147.31,147.24,14.66]
[1727203654317,3.394,147.33,147.26,14.66]
[1727203654522,14.66,147.34,147.26,14.66]
[1727203654931,14.66,147.34,147.29,3.3947]
[1727203655218,14.66,147.32,147.23,4.1164]
[1727203655415,14.66,147.34,147.25,14.66]
[1727203655616,3.3943,147.32,147.28,3.3949]
[1727203656819,14.66,147.34,147.29,3.3947]
[1727203656820,3.394,147.33,147.29,3.3947]
[1727203658227,3.3941,147.32,147.29,3.3947]
[1727203662626,3.3939,147.33,147.3,3.3945]
[1727203662829,14.66,147.36,147.28,14.66]
[1727203663233,3.3936,147.35,147.32,3.3941]
[1727203664526,3.3936,147.34,147.32,3.3941]
[1727203664726,14.66,147.36,147.28,14.66]
[1727203665230,14.66,147.36,147.26,14.66]
[1727203665430,14.66,147.36,147.27,5.93424858]
[1727203665625,14.66,147.36,147.26,14.66]
[1727203665820,14.66,147.4,147.3,14.66]
[1727203666020,14.66,147.4,147.27,20.59377139]
[1727203666021,14.66,147.4,147.32,14.66]
[1727203666235,3.3928,147.38,147.32,14.66]
[1727203667126,3.3925,147.39,147.35,3.3932]
[1727203667334,3.3925,147.39,147.32,14.66]
[1727203667833,3.3925,147.39,147.35,3.3932]
[1727203668733,3.3927,147.38,147.35,3.3932]
[1727203669038,3.3927,147.38,147.34,3.3935]
[1727203669734,14.66,147.39,147.33,3.3938]
[1727203669944,14.66,147.4,147.31,20.8204256]
[1727203670235,14.66,147.4,147.31,17.3728]
[1727203670428,14.66,147.4,147.32,3.35154701]
[1727203670825,18.0524,147.4,147.36,3.3931]
[1727203671239,3.3924,147.4,147.36,3.3931]
[1727203671738,3.3925,147.39,147.36,3.3931]
[1727203673537,14.66,147.39,147.31,2.7128]
[1727203674336,14.66,147.39,147.33,3.3937]
[1727203674337,3.3931,147.37,147.33,3.3937]
[1727203674530,14.66,147.37,147.31,2.7128]
[1727203674731,18.01630002,147.37,147.29,1.4166]
[1727203675129,14.66,147.37,147.29,1.4166]
[1727203675441,3.3933,147.36,147.32,3.3939]
[1727203675639,14.66,147.38,147.3,18.05025005]
[1727203676734,18.0528,147.38,147.34,3.3935]
[1727203677340,18.0528,147.38,147.35,3.3933]
[1727203677940,16.024,147.42,147.33,14.66]
[1727203678338,3.3924,147.4,147.36,3.393]
[1727203678539,16.024,147.42,147.33,14.66]
[1727203678837,3.3926,147.39,147.33,14.66]
[1727203679044,3.3926,147.39,147.35,3.3932]
[1727203679742,16.024,147.42,147.33,14.66]
[1727203679939,14.66,147.39,147.29,16.0766]
[1727203680343,14.66,147.39,147.33,3.3938]
[1727203680344,3.3933,147.36,147.33,3.3938]
[1727203680537,14.66,147.37,147.29,16.0766]
[1727203680733,14.66,147.37,147.29,1.4166]
[1727203681137,3.3936,147.35,147.32,3.3941]
[1727203681837,3.3932,147.36,147.32,3.3941]
[1727203682639,14.66,147.37,147.29,1.4166]
[1727203682834,3.3938,147.34,147.29,1.4166]
[1727203683256,3.3935,147.35,147.31,3.3941]
[1727203683635,3.3935,147.35,147.29,1.4166]
[1727203685550,3.3935,147.35,147.31,3.3941]
[1727203686450,3.3935,147.35,147.29,1.4166]
[1727203686451,3.3933,147.36,147.32,3.394]
[1727203688354,14.66,147.37,147.32,3.394]
[1727203688355,3.3934,147.35,147.32,3.394]
[1727203688555,18.05930784,147.37,147.31,3.3942]
[1727203688856,3.3942,147.32,147.26,2.6398]
[1727203689043,14.66,147.31,147.27,3.3951]
[1727203689551,18.0544,147.31,147.24,8.60435702]
[1727203689751,18.0544,147.31,147.24,2.681]
[1727203689955,3.3942,147.32,147.28,3.3949]
[1727203691258,3.3944,147.31,147.28,3.3949]
[1727203692356,14.66,147.29,147.23,1.39]
[1727203692755,14.66,147.29,147.25,3.3955]
[1727203692955,18.0549,147.29,147.25,3.3955]
[1727203693554,18.0549,147.29,147.26,3.3955]
[1727203695161,3.395,147.28,147.25,3.3956]
[1727203696252,18.0549,147.29,147.25,3.3956]
[1727203697765,3.3951,147.28,147.25,3.3956]
[1727203702477,9.39,147.26,147.25,3.3956]
[1727203703371,9.39,147.26,147.22,9.39]
[1727203703372,9.39,147.26,147.24,3.3958]
[1727203703568,9.39,147.26,147.18,2.8589]
[1727203703569,9.39,147.25,147.18,4.1841]
[1727203703764,4.106,147.3,147.19,9.39]
[1727203703765,9.39,147.23,147.19,9.39]
[1727203703970,9.39,147.23,147.22,3.3963]
[1727203706974,9.39,147.23,147.18,4.1841]
[1727203707170,9.39,147.21,147.18,4.1841]
[1727203707379,9.39,147.2,147.18,3.3972]
[1727203708090,9.39,147.2,147.19,3.3971]
[1727203709283,9.39,147.2,147.18,3.3973]
[1727203709977,9.39,147.2,147.19,3.3971]
[1727203710283,10.8953,147.3,147.19,9.39]
[1727203710284,9.39,147.24,147.19,9.39]
[1727203710682,9.39,147.24,147.22,3.3963]
[1727203711182,3.3955,147.27,147.23,3.396]
[1727203711383,9.39,147.26,147.23,3.396]
[1727203712379,14.67,147.28,147.23,3.396]
[1727203712584,14.67,147.28,147.22,3.3963]
[1727203713288,3.3957,147.26,147.22,3.3963]
[1727203713482,14.67,147.28,147.22,3.3963]
[1727203714280,3.3957,147.26,147.23,3.3962]
[1727203714585,18.776,147.3,147.21,14.67]
[1727203715582,18.776,147.3,147.19,14.67]
[1727203715786,14.67,147.28,147.19,14.67]
[1727203716185,3.3957,147.25,147.22,3.3963]
[1727203717390,4.106,147.3,147.2,3.3967]
[1727203717391,14.67,147.26,147.2,3.3967]
[1727203717582,14.67,147.26,147.17,4.1059]
[1727203717989,3.3963,147.23,147.19,3.397]
[1727203718383,14.67,147.22,147.14,84.51620982]
[1727203718578,3.3967,147.21,147.17,3.3975]
[1727203718982,14.67,147.22,147.14,81.08605627]
[1727203719383,14.67,147.22,147.19,3.3971]
[1727203719995,18.0664,147.22,147.19,3.3971]
[1727203721592,14.67,147.28,147.14,81.08605627]
[1727203721593,14.67,147.24,147.14,81.08605627]
[1727203722588,18.0661,147.24,147.14,81.08605627]
[1727203723293,3.3963,147.23,147.19,3.397]
[1727203723688,14.67,147.24,147.19,3.397]
[1727203724799,3.3964,147.22,147.19,3.397]
[1727203725003,18.0664,147.22,147.19,3.397]
[1727203726299,3.3967,147.21,147.18,3.3972]
[1727203726494,14.67,147.22,147.14,81.08605627]
[1727203726804,18.0666,147.22,147.18,3.3971]
[1727203727004,14.67,147.22,147.18,3.3971]
[1727203727405,3.3967,147.21,147.18,3.3971]
[1727203729802,3.3969,147.2,147.14,81.08605627]
[1727203730304,3.3967,147.21,147.17,3.3974]
[1727203731601,3.3967,147.21,147.18,3.3973]
[1727203732407,9.4,147.19,147.18,3.3973]
[1727203733214,9.4,147.19,147.17,3.3974]
[1727203740113,9.4,147.19,147.18,3.3973]
[1727203740316,9.4,147.2,147.18,3.3973]
[1727203740510,9.4,147.2,147.15,9.4]
[1727203741418,3.47278658,147.23,147.15,9.4]
[1727203741720,9.4,147.21,147.16,9.4]
[1727203741909,9.4,147.21,147.19,3.3969]
[1727203744114,9.4,147.2,147.18,3.3972]
[1727203744314,9.4,147.19,147.18,3.3972]
[1727203746207,9.4,147.19,147.14,9.4]
[1727203746504,9.4,147.19,147.13,3.4836624]
[1727203746505,9.4,147.18,147.13,9.4]
[1727203746710,9.4,147.18,147.14,9.4]
[1727203746913,69.75286604,147.3,147.17,9.4]
[1727203747111,9.4,147.23,147.17,9.4]
[1727203747512,12.7962,147.23,147.17,9.4]
[1727203748912,12.7962,147.23,147.2,3.3969]
[1727203749917,9.4,147.21,147.19,3.397]
[1727203750118,9.4,147.2,147.15,9.4]
[1727203750927,9.4,147.16,147.14,3.3981]
[1727203751221,9.4,147.16,147.11,4.1087]
[1727203751222,9.4,147.14,147.11,2.7792]
[1727203752122,9.4,147.15,147.11,2.7792]
[1727203752313,9.4,147.15,147.09,9.4]
[1727203752925,9.4,147.15,147.12,3.3985]
[1727203753117,9.4,147.15,147.09,9.4]
[1727203753717,9.4,147.15,147.13,3.3984]
[1727203754918,3.3977,147.17,147.13,3.3984]
[1727203755117,9.4,147.14,147.13,3.3984]
[1727203756039,9.4,147.14,147.12,3.3986]
[1727203758722,9.4,147.13,147.08,9.4]
[1727203758932,9.4,147.11,147.07,4.78848616]
[1727203759522,4.0603,147.22,147.09,9.4]
[1727203759724,4.0603,147.22,147.07,4.78848616]
[1727203759725,9.4,147.13,147.07,4.78848616]
[1727203759923,9.4,147.13,147.08,9.4]
[1727203760528,9.4,147.13,147.11,3.3988]
[1727203760831,9.4,147.12,147.07,4.78848616]
[1727203761135,9.4,147.12,147.11,3.3988]
[1727203764229,9.4,147.12,147.07,10.727]
[1727203764424,9.4,147.11,147.07,10.727]
[1727203765133,9.4,147.11,147.09,3.3992]
[1727203766735,9.4,147.1,147.05,1.3748]
[1727203767325,9.4,147.1,147.07,3.3997]
[1727203767530,9.4,147.11,147.05,10.7748]
[1727203767732,9.4,147.11,147.05,1.3748]
[1727203767925,9.4,147.09,147.05,1.3748]
[1727203769531,9.4,147.09,147.07,3.3997]
[1727203771941,9.4,147.08,147.06,3.4]
[1727203772527,9.4,147.07,147.06,3.4]
[1727203772733,9.4,147.07,146.99,3.41806759]
[1727203772734,9.4,147.07,146.99,16.21860795]
[1727203772927,2.7226,147.11,146.99,9.4]
[1727203772928,9.4,147.04,146.99,9.4]
[1727203773134,9.4,147.02,147.0,3.4013]
[1727203773635,3.4,147.07,146.99,9.4]
[1727203773940,9.4,147.04,146.99,9.4]
[1727203774733,9.4,147.04,147.02,3.4009]
[1727203776238,2.7226,147.11,147.03,3.4006]
[1727203776444,9.4,147.05,147.0,9.4]
[1727203776944,9.4,147.04,147.02,3.401]
[1727203777633,3.4,147.07,147.03,3.4008]
[1727203777942,9.4,147.05,147.0,9.4]
[1727203778130,9.4,147.05,147.01,9.4]
[1727203778540,9.4,147.05,147.04,3.4006]
[1727203778728,9.4,147.05,146.98,4.0659]
[1727203778932,9.4,147.05,147.01,9.4]
[1727203779134,9.4,147.05,147.03,3.4007]
[1727203779728,9.4,147.06,147.04,3.4004]
[1727203780130,9.4,147.06,147.01,9.4]
[1727203780337,9.4,147.1,147.04,9.4]
[1727203780532,10.842,147.12,147.07,9.4]
[1727203781130,10.842,147.12,147.09,3.3993]
[1727203781736,9.4,147.12,147.07,9.4]
[1727203782551,1.3221,147.18,147.08,9.4]
[1727203782552,9.4,147.13,147.08,9.4]
[1727203782841,9.4,147.13,147.12,3.3987]
[1727203783042,9.4,147.15,147.01,81.16032508]
[1727203783236,9.4,147.13,147.09,9.4]
[1727203784944,9.4,147.13,147.1,3.3991]
[1727203785932,9.4,147.15,147.11,9.4]
[1727203786244,9.4,147.13,147.08,9.4]
[1727203786645,9.4,147.13,147.1,3.399]
[1727203787142,9.4,147.12,147.07,12.2442]
[1727203788050,9.4,147.12,147.09,3.3993]
[1727203788945,9.4,147.12,147.08,3.3995]
[1727203789144,12.7987,147.12,147.08,3.3995]
[1727203789540,9.4,147.12,147.08,3.3995]
[1727203790937,9.4,147.12,147.09,3.3994]
[1727203792147,9.4,147.1,147.02,1.3159]
[1727203792341,9.4,147.1,147.04,9.4]
[1727203792649,9.4,147.1,147.07,3.3999]
[1727203793651,9.4,147.12,147.08,9.4]
[1727203794245,9.4,147.11,147.09,3.3992]
[1727203797249,9.4,147.11,147.08,9.4]
[1727203798452,9.4,147.11,147.09,3.3993]
[1727203800450,9.4,147.1,147.08,3.3995]
[1727203800749,1.3221,147.18,147.02,4.0885]
[1727203800953,9.4,147.12,147.09,3.3994]
[1727203801144,9.4,147.12,147.08,9.4]
[1727203801756,12.7987,147.12,147.08,3.3995]
[1727203802747,12.7987,147.12,147.09,3.3994]
[1727203803049,1.3221,147.18,147.08,9.4]
[1727203803252,9.4,147.14,147.09,9.4]
[1727203803446,1.3221,147.18,147.11,9.4]
[1727203803646,9.4,147.16,147.12,12.7987]
[1727203803845,9.4,147.14,147.1,9.4]
[1727203804250,12.7983,147.14,147.1,9.4]
[1727203805161,9.4,147.14,147.1,9.4]
[1727203805458,9.4,147.16,147.1,9.4]
[1727203805654,9.4,147.14,147.1,9.4]
[1727203805959,9.4,147.14,147.11,3.3988]
[1727203806456,9.4,147.14,147.1,9.4]
[1727203806657,9.4,147.13,147.09,9.4]
[1727203807360,9.4,147.13,147.1,3.399]
[1727203807548,9.4,147.13,147.08,1.4042]
[1727203807746,12.7987,147.12,147.09,3.3993]
[1727203807954,9.4,147.12,147.09,3.3993]
[1727203808862,9.4,147.1,147.05,9.4]